bitfinex-derivatives/quotes_BTCF0:USTF0_20210104
["timestamp","ask_amount","ask_price","bid_price","bid_amount"]
[1609788915754,0.13632608,31706.0,31701.0,0.0935]
[1609788915954,0.13632608,31706.0,31701.0,0.0715]
[1609788916155,0.13632608,31706.0,31701.0,0.0466]
[1609788916354,0.13632608,31706.0,31701.0,0.0052]
[1609788916554,0.13632608,31706.0,31700.0,0.4917]
[1609788916954,0.13632608,31706.0,31700.0,0.4433]
[1609788917154,4.30490608,31707.0,31700.0,0.4433]
[1609788917556,0.13632608,31701.0,31700.0,0.019]
[1609788917958,0.28199608,31701.0,31700.0,0.019]
[1609788919458,0.28199608,31701.0,31670.0,1.77150549]
[1609788919659,0.14567,31701.0,31670.0,1.77150549]
[1609788919861,0.14567,31701.0,31668.0,1.7712903]
[1609788920059,4.7862,31695.0,31668.0,1.7712903]
[1609788921260,4.7862,31695.0,31660.0,1.77278547]
[1609788921559,0.14567,31701.0,31678.0,0.13632608]
[1609788921759,0.14567,31701.0,31679.0,0.0956]
[1609788921959,4.5751,31686.0,31666.0,0.15399]
[1609788922160,0.12388,31686.0,31666.0,0.15399]
[1609788922559,4.0703,31674.0,31666.0,0.08519]
[1609788922760,4.0703,31674.0,31666.0,0.06959]
[1609788922960,4.0703,31674.0,31645.0,1.77553547]
[1609788923561,4.0703,31674.0,31646.0,0.094]
[1609788923762,0.1442,31676.0,31646.0,0.18564]
[1609788923961,4.9385,31658.0,31646.0,0.14694]
[1609788924161,4.9385,31658.0,31643.0,0.15055]
[1609788924361,4.9385,31658.0,31643.0,0.13655]
[1609788924563,4.9385,31658.0,31643.0,0.04075]
[1609788924762,4.9385,31658.0,31643.0,0.01095]
[1609788925564,4.9385,31658.0,31651.0,0.13632608]
[1609788926164,4.9385,31658.0,31643.0,0.01095]
[1609788926364,4.9385,31658.0,31641.0,0.0937]
[1609788926564,4.9385,31658.0,31610.0,1.90110343]
[1609788926765,0.09911,31660.0,31610.0,1.95662343]
[1609788926966,5.19565,31651.0,31610.0,1.95662343]
[1609788927868,5.19565,31651.0,31611.0,0.0954]
[1609788928069,5.19565,31651.0,31650.0,0.13632608]
[1609788928270,5.19565,31651.0,31644.0,0.0943]
[1609788928873,5.19565,31651.0,31634.0,0.15426]
[1609788929273,0.15615,31651.0,31634.0,0.15426]
[1609788930574,0.15615,31651.0,31650.0,0.13632608]
[1609788931876,0.09911,31660.0,31650.0,0.13632608]
[1609788932276,0.1442,31676.0,31650.0,0.13632608]
[1609788932475,0.13632608,31683.0,31675.0,0.13632608]
[1609788932876,0.12388,31686.0,31675.0,0.13632608]
[1609788933075,4.3485,31700.0,31675.0,0.13632608]
[1609788933279,2.07674099,31720.0,31675.0,0.13632608]
[1609788933476,3.9624,31713.0,31675.0,0.13632608]
[1609788933875,3.9624,31713.0,31676.0,0.0933]
[1609788934076,3.9624,31713.0,31663.0,4.85004]
[1609788934275,0.20947,31711.0,31663.0,4.85004]
[1609788934675,0.11637,31711.0,31663.0,4.85004]
[1609788936975,0.13632608,31688.0,31663.0,4.85004]
[1609788937176,0.13632608,31688.0,31663.0,0.12824]
[1609788937376,0.26942608,31688.0,31663.0,0.12824]
[1609788938178,0.26942608,31688.0,31655.0,0.12982]
[1609788938380,0.26942608,31688.0,31648.0,3.9355]
[1609788938980,0.1331,31688.0,31687.0,0.13632608]
[1609788939781,0.13632608,31692.0,31678.0,0.11318]
[1609788940782,0.13632608,31692.0,31679.0,0.0948]
[1609788940985,0.13632608,31692.0,31682.0,0.13632608]
[1609788941987,0.13632608,31692.0,31682.0,0.12722608]
[1609788942185,0.13632608,31692.0,31682.0,0.07322608]
[1609788942988,3.96287,31711.0,31669.0,0.13772]
[1609788943188,3.96287,31711.0,31670.0,0.0958]
[1609788943888,3.96287,31711.0,31669.0,0.13772]
[1609788944388,3.96287,31711.0,31667.0,4.6044]
[1609788945089,0.13632608,31668.0,31641.0,0.13202]
[1609788945290,0.13632608,31668.0,31644.0,0.0945]
[1609788946091,0.13632608,31668.0,31649.0,1.79026578]
[1609788947093,0.13632608,31650.0,31649.0,1.79026578]
[1609788947692,0.0932,31678.0,31649.0,1.79026578]
[1609788947892,0.15312,31680.0,31649.0,1.79026578]
[1609788949093,0.67762,31680.0,31649.0,1.79026578]
[1609788949494,0.67762,31680.0,31648.0,0.1012]
[1609788949892,0.67762,31680.0,31644.0,0.0944]
[1609788950993,0.13632608,31647.0,31645.0,0.13632608]
[1609788951192,0.0942,31679.0,31645.0,0.13632608]
[1609788951392,0.13367,31661.0,31645.0,0.13632608]
[1609788952693,0.13367,31661.0,31641.0,0.13202]
[1609788952992,0.13632608,31642.0,31641.0,0.13632608]
[1609788954395,0.13632608,31642.0,31619.0,1.81479397]
[1609788954795,0.13632608,31642.0,31616.0,1.97977524]
[1609788954796,0.13632608,31642.0,31616.0,1.8152807]
[1609788955094,0.13632608,31642.0,31641.0,0.13632608]
[1609788955494,0.12965,31654.0,31641.0,0.13632608]
[1609788956195,0.12965,31654.0,31642.0,0.0953]
[1609788956397,0.12965,31654.0,31641.0,0.13632608]
[1609788956801,5.0382,31667.0,31641.0,0.13632608]
[1609788956998,0.10253,31669.0,31641.0,0.13632608]
[1609788957198,0.10253,31669.0,31636.0,0.13679]
[1609788957199,0.10253,31669.0,31663.0,0.13632608]
[1609788957598,0.10253,31669.0,31653.0,0.09833]
[1609788957798,0.10253,31669.0,31660.0,0.1255]
[1609788957999,5.303,31689.0,31660.0,0.1255]
[1609788959098,0.15892,31689.0,31683.0,0.13632608]
[1609788959501,0.15892,31689.0,31683.0,0.25679608]
[1609788960101,0.2948,31710.0,31683.0,0.25679608]
[1609788960301,0.11637,31711.0,31683.0,0.25679608]
[1609788960502,0.2836,31723.0,31683.0,0.25679608]
[1609788960703,5.2344,31723.0,31683.0,0.25679608]
[1609788961202,5.2344,31723.0,31689.0,0.13632608]
[1609788961402,0.0944,31718.0,31689.0,0.13632608]
[1609788961704,0.20548,31718.0,31689.0,0.13632608]
[1609788961902,0.11108,31718.0,31689.0,0.13632608]
[1609788963203,0.2836,31723.0,31683.0,0.12047]
[1609788963604,0.2836,31723.0,31710.0,0.13632608]
[1609788963805,0.12964,31726.0,31710.0,0.13632608]
[1609788964004,0.2815,31738.0,31710.0,0.25301608]
[1609788965806,0.2815,31738.0,31710.0,0.11669]
[1609788966007,0.2815,31738.0,31711.0,0.0937]
[1609788966208,0.1771,31742.0,31729.0,0.13632608]
[1609788967208,0.12691,31744.0,31729.0,0.13632608]
[1609788967410,0.12691,31744.0,31730.0,0.0938]
[1609788967609,0.12691,31744.0,31729.0,0.13632608]
[1609788968009,0.12691,31744.0,31722.0,0.12021]
[1609788968210,0.1,31750.0,31722.0,0.12021]
[1609788968611,0.1,31750.0,31749.0,0.13632608]
[1609788969210,0.1,31750.0,31745.0,0.10718]
[1609788970210,0.1,31750.0,31746.0,0.0952]
[1609788970410,0.1,31750.0,31747.0,0.095]
[1609788970811,0.1,31750.0,31749.0,0.13632608]
[1609788971713,0.1,31750.0,31745.0,0.10718]
[1609788972716,0.1,31750.0,31749.0,0.13632608]
[1609788973115,0.2857,31770.0,31749.0,0.13632608]
[1609788973415,0.2857,31770.0,31750.0,0.0936]
[1609788973615,0.2857,31770.0,31749.0,0.13632608]
[1609788973815,0.1389,31772.0,31749.0,0.13632608]
[1609788974817,0.1389,31772.0,31770.0,0.13632608]
[1609788975221,0.1771,31782.0,31770.0,0.13632608]
[1609788975418,0.1771,31800.0,31770.0,0.28344608]
[1609788975818,0.0932,31792.0,31770.0,0.28344608]
[1609788976018,0.1771,31800.0,31770.0,0.28344608]
[1609788976019,0.1771,31800.0,31770.0,0.24914608]
[1609788976820,0.13632608,31771.0,31770.0,0.24914608]
[1609788977521,0.13632608,31771.0,31770.0,0.14712]
[1609788978022,0.13632608,31771.0,31770.0,0.02332]
[1609788978723,0.13632608,31771.0,31770.0,0.01312]
[1609788978923,0.13632608,31771.0,31760.0,0.09673]
[1609788979123,4.6808,31770.0,31760.0,0.08643]
[1609788979325,4.6808,31770.0,31760.0,0.07583]
[1609788979524,4.6808,31770.0,31733.0,4.7167]
[1609788980326,0.093,31769.0,31712.0,0.0952]
[1609788980525,4.0343,31758.0,31712.0,0.0952]
[1609788981126,4.0343,31758.0,31713.0,0.0948]
[1609788982725,4.0343,31758.0,31702.0,1.73416606]
[1609788982929,0.13632608,31735.0,31702.0,1.73416606]
[1609788983328,0.11028,31738.0,31728.0,0.13632608]
[1609788983526,0.11028,31738.0,31720.0,0.15512]
[1609788984328,0.11028,31738.0,31721.0,0.0936]
[1609788985329,0.13632608,31741.0,31737.0,0.13632608]
[1609788985530,0.13632608,31741.0,31737.0,0.23477608]
[1609788986331,0.13632608,31741.0,31737.0,0.09845]
[1609788986530,0.13632608,31741.0,31738.0,0.0959]
[1609788986930,0.13632608,31741.0,31737.0,0.04965]
[1609788987330,0.13632608,31741.0,31737.0,0.04795]
[1609788987530,0.13632608,31741.0,31737.0,0.00025]
[1609788988430,0.12354,31751.0,31737.0,0.00025]
[1609788989030,0.10923,31758.0,31738.0,0.0952]
[1609788989231,0.1771,31778.0,31737.0,0.00025]
[1609788989930,0.1771,31778.0,31754.0,0.13632608]
[1609788990930,0.1771,31778.0,31754.0,0.03682608]
[1609788991131,0.1771,31778.0,31746.0,0.10839]
[1609788991331,0.28602,31778.0,31746.0,0.10839]
[1609788991932,0.28602,31778.0,31759.0,0.13632608]
[1609788994138,0.13632608,31760.0,31759.0,0.13632608]
[1609788996139,0.10579,31766.0,31746.0,0.10839]
[1609788996338,0.10579,31766.0,28507.0,0.03039865]
[1609788996540,0.10579,31766.0,31746.0,0.11888]
[1609788997242,0.10579,31766.0,31752.0,0.13632608]
[1609788998044,0.10579,31766.0,31746.0,0.11888]
[1609788999244,4.6251,31771.0,31748.0,0.13632608]
[1609789001152,0.28602,31778.0,31748.0,0.13632608]
[1609789001353,0.13632608,31751.0,31748.0,0.13632608]
[1609789002046,0.10249,31768.0,31748.0,0.13632608]
[1609789002650,0.10249,31768.0,31746.0,0.11888]
[1609789002849,0.10249,31768.0,31733.0,3.763]
[1609789003250,0.10249,31768.0,31753.0,0.13632608]
[1609789004150,0.10249,31768.0,31748.0,0.10068]
[1609789005253,0.10249,31768.0,31753.0,0.13632608]
[1609789006457,5.0197,31775.0,31753.0,0.13632608]
[1609789007257,5.0197,31775.0,31762.0,0.13632608]
[1609789007856,5.0197,31775.0,31759.0,0.13561]
[1609789009260,0.13632608,31760.0,31759.0,0.13561]
[1609789010460,0.13632608,31760.0,31748.0,0.10068]
[1609789010760,0.13632608,31760.0,31733.0,3.763]
[1609789011161,0.13632608,31760.0,31727.0,0.0953]
[1609789011361,0.13632608,31756.0,31755.0,0.13632608]
[1609789012764,0.13632608,31756.0,31755.0,0.23092608]
[1609789012964,0.13632608,31756.0,31755.0,0.13632608]
[1609789013666,0.13632608,31756.0,31720.0,0.15512]
[1609789015271,0.12525,31764.0,31749.0,0.13632608]
[1609789015470,0.12525,31764.0,31750.0,0.0935]
[1609789015668,0.12525,31764.0,31749.0,0.13632608]
[1609789016472,0.12525,31764.0,31715.0,1.76439148]
[1609789016677,0.76655,31764.0,31715.0,1.76439148]
[1609789016881,0.76655,31764.0,31729.0,0.0933]
[1609789017078,0.12525,31764.0,31729.0,0.20994]
[1609789017277,4.3308,31756.0,31729.0,0.20994]
[1609789017468,4.46695,31756.0,31729.0,0.11664]
[1609789019373,0.13632608,31730.0,31729.0,0.11664]
[1609789019972,0.13632608,31730.0,31729.0,0.21244]
[1609789020572,0.13632608,31730.0,31729.0,0.11664]
[1609789020772,0.13632608,31730.0,31720.0,0.15512]
[1609789020972,0.13632608,31730.0,31709.0,1.76889166]
[1609789021172,0.13632608,31730.0,31693.0,2.57293332]
[1609789021173,0.72672608,31730.0,31699.0,1.78920587]
[1609789021372,0.10825,31736.0,31714.0,0.13632608]
[1609789021672,0.10825,31736.0,31715.0,0.0934]
[1609789021875,5.0621,31725.0,31715.0,0.0934]
[1609789022772,5.0621,31725.0,31714.0,0.1442]
[1609789023072,5.0621,31725.0,31714.0,0.1104]
[1609789023273,0.13632608,31715.0,31714.0,0.1104]
[1609789023671,0.13632608,31715.0,31714.0,0.0125]
[1609789024073,0.13632608,31715.0,31714.0,0.1075]
[1609789025276,0.13632608,31715.0,31714.0,0.0125]
[1609789026079,0.13632608,31715.0,31702.0,0.13632608]
[1609789026482,0.13632608,31715.0,31703.0,0.0936]
[1609789026789,0.13632608,31715.0,31703.0,0.22696]
[1609789026983,0.13632608,31715.0,31703.0,0.13336]
[1609789027186,0.12499,31722.0,31703.0,0.13336]
[1609789027383,0.12499,31722.0,31721.0,0.13632608]
[1609789027584,0.14947,31729.0,31711.0,0.15111]
[1609789027785,0.10825,31736.0,31711.0,0.15111]
[1609789027988,4.4485,31738.0,31711.0,0.15111]
[1609789029189,4.4485,31738.0,31712.0,0.0945]
[1609789029387,4.4485,31738.0,31726.0,0.13632608]
[1609789030089,0.2801,31750.0,31726.0,0.13632608]
[1609789030288,3.8974,31749.0,31726.0,0.13632608]
[1609789030488,0.2801,31750.0,31726.0,0.13632608]
[1609789030688,2.0700302,31757.0,31718.0,0.14704]
[1609789031088,2.1789402,31757.0,31718.0,0.14704]
[1609789031288,2.1789402,31757.0,31723.0,0.13632608]
[1609789031888,2.1789402,31757.0,31718.0,0.14704]
[1609789032089,0.50165016,31757.0,31718.0,0.14704]
[1609789033291,0.50165016,31757.0,31724.0,0.13632608]
[1609789033491,0.10891,31757.0,31724.0,0.13632608]
[1609789035296,0.10891,31757.0,31746.0,0.13632608]
[1609789035697,0.10891,31757.0,31736.0,4.9372]
[1609789036096,1.85277745,31760.0,31736.0,4.9372]
[1609789036298,1.85277745,31760.0,31736.0,5.08531]
[1609789036898,1.85277745,31760.0,31737.0,0.0946]
[1609789037099,1.85277745,31760.0,31736.0,5.08531]
[1609789037299,0.1771,31760.0,31756.0,0.13632608]
[1609789038901,0.15151,31761.0,31757.0,0.095]
[1609789039099,0.1771,31760.0,31757.0,0.095]
[1609789039299,0.28783608,31761.0,31759.0,0.13632608]
[1609789041900,0.28783608,31761.0,31752.0,3.9669]
[1609789042300,0.15151,31761.0,31752.0,3.9669]
[1609789042701,0.1771,31778.0,31752.0,3.9669]
[1609789043303,0.1771,31778.0,31757.0,0.13632608]
[1609789043802,0.1771,31778.0,31753.0,0.0934]
[1609789044003,0.27977,31778.0,31752.0,3.9669]
[1609789044205,0.7389,31777.0,31752.0,3.9669]
[1609789045405,0.7389,31777.0,31758.0,0.13632608]
[1609789045806,0.7389,31777.0,31752.0,3.9669]
[1609789047306,0.13632608,31754.0,31752.0,4.10322608]
[1609789050811,0.14001,31762.0,31752.0,3.9669]
[1609789051410,0.14001,31762.0,31753.0,0.13632608]
[1609789051610,0.14001,31762.0,31754.0,0.0949]
[1609789052612,0.14001,31762.0,31753.0,0.13632608]
[1609789052812,0.7389,31777.0,31753.0,0.13632608]
[1609789053013,0.10234,31762.0,31753.0,0.13632608]
[1609789053313,0.13632608,31754.0,31753.0,0.13632608]
[1609789055716,0.10234,31762.0,31753.0,0.13632608]
[1609789055916,0.10234,31762.0,31754.0,0.0951]
[1609789056516,0.10234,31762.0,31753.0,0.13632608]
[1609789057417,0.10234,31762.0,31743.0,5.38847]
[1609789057616,0.10234,31762.0,31744.0,0.0938]
[1609789057816,0.10234,31762.0,31743.0,5.38847]
[1609789058016,0.27977,31778.0,31746.0,0.13632608]
[1609789058417,0.27977,31778.0,31747.0,0.0932]
[1609789059117,0.27977,31778.0,31743.0,5.38847]
[1609789059919,0.27977,31778.0,31751.0,0.13632608]
[1609789060721,0.27977,31778.0,31753.0,4.7588]
[1609789060920,0.27977,31778.0,31754.0,0.0947]
[1609789061720,0.10267,31778.0,31754.0,0.0947]
[1609789061920,0.2986,31785.0,31753.0,4.7588]
[1609789062121,0.2986,31785.0,31762.0,0.13632608]
[1609789062321,0.0222263,31789.0,31762.0,0.13632608]
[1609789062723,0.0222263,31789.0,31753.0,4.7588]
[1609789062923,0.1487163,31789.0,31753.0,4.7588]
[1609789063123,0.1487163,31789.0,31754.0,0.0935]
[1609789063623,0.1487163,31789.0,31753.0,4.7588]
[1609789064223,0.1487163,31789.0,31762.0,0.13632608]
[1609789065124,0.1487163,31789.0,31753.0,4.7588]
[1609789065426,0.5876,31788.0,31753.0,4.7588]
[1609789066126,0.5876,31788.0,31758.0,0.13632608]
[1609789067428,0.0939,31787.0,31758.0,0.13632608]
[1609789068227,0.13632608,31759.0,31758.0,0.13632608]
[1609789079141,0.13632608,31759.0,31753.0,0.093]
[1609789079343,4.5715,31757.0,31731.0,5.0276]
[1609789079741,0.25422608,31759.0,31722.0,1.77648605]
[1609789079941,3.7387,31751.0,31722.0,1.77648605]
[1609789080141,0.25422608,31759.0,31722.0,1.77648605]
[1609789080341,5.1728,31745.0,31728.0,0.13105]
[1609789080542,5.1728,31745.0,31729.0,0.0931]
[1609789080742,5.1728,31745.0,31728.0,0.13105]
[1609789080943,5.1728,31745.0,31721.0,0.14931]
[1609789081544,5.1728,31745.0,31722.0,0.0942]
[1609789081745,0.094,31744.0,31722.0,0.0942]
[1609789082046,0.094,31744.0,31721.0,0.14931]
[1609789082246,0.094,31744.0,31722.0,0.13632608]
[1609789082444,5.1728,31745.0,31722.0,0.13632608]
[1609789083047,5.1728,31745.0,31723.0,0.0948]
[1609789083752,5.1728,31745.0,31722.0,0.13632608]
[1609789084248,5.1728,31745.0,31726.0,0.13632608]
[1609789086251,0.13632608,31727.0,31726.0,0.13632608]
[1609789086653,0.13632608,31727.0,31721.0,0.14931]
[1609789086855,0.13632608,31727.0,31695.0,2.08553332]
[1609789087257,0.13632608,31727.0,31695.0,6.21723332]
[1609789087754,0.13632608,31727.0,31696.0,0.0953]
[1609789087955,0.13632608,31727.0,31696.0,0.20848]
[1609789088155,0.13632608,31727.0,31696.0,0.11318]
[1609789088354,4.0612,31738.0,31722.0,0.13632608]
[1609789088554,4.0612,31738.0,31722.0,0.25964608]
[1609789090258,4.0612,31738.0,31728.0,0.13632608]
[1609789090858,4.0612,31738.0,31722.0,0.12332]
[1609789091057,4.0612,31738.0,31723.0,0.0941]
[1609789091357,4.0612,31738.0,31722.0,0.12332]
[1609789092258,4.0612,31738.0,31726.0,0.13632608]
[1609789093860,4.0612,31738.0,31722.0,0.12332]
[1609789094259,4.0612,31738.0,31722.0,0.25964608]
[1609789094260,0.13632608,31723.0,31722.0,0.25964608]
[1609789094460,0.13632608,31723.0,31722.0,0.13632608]
[1609789095059,0.13632608,31723.0,31693.0,1.89358206]
[1609789095960,0.13632608,31723.0,31693.0,1.79958206]
[1609789096259,4.3089,31734.0,31716.0,0.13632608]
[1609789096460,4.3089,31734.0,31716.0,0.26754608]
[1609789097060,0.10694,31743.0,31716.0,0.26754608]
[1609789097460,3.7212,31746.0,31716.0,0.26754608]
[1609789097962,0.0955,31745.0,31716.0,0.26754608]
[1609789098362,0.13632608,31717.0,31716.0,0.26754608]
[1609789099762,0.11438,31732.0,31716.0,0.36244608]
[1609789100164,0.11438,31732.0,31716.0,0.26754608]
[1609789100364,0.13632608,31736.0,31726.0,0.13632608]
[1609789100966,0.11647,31750.0,31726.0,0.13632608]
[1609789101170,0.1771,31761.0,31726.0,0.13632608]
[1609789101367,4.6724,31758.0,31726.0,0.13632608]
[1609789101966,4.3997,31758.0,31726.0,0.13632608]
[1609789102368,4.3997,31758.0,31754.0,0.13632608]
[1609789102767,0.1771,31761.0,31754.0,0.13632608]
[1609789103172,4.7541,31770.0,31754.0,0.13632608]
[1609789104372,0.13632608,31755.0,31754.0,0.13632608]
[1609789104673,0.13632608,31755.0,31754.0,0.23122608]
[1609789104875,0.13632608,31755.0,31754.0,0.13632608]
[1609789105779,0.13632608,31755.0,31754.0,0.22992608]
[1609789106175,0.13632608,31755.0,31754.0,0.22612608]
[1609789106976,0.13632608,31755.0,31754.0,0.0936]
[1609789107177,0.13632608,31755.0,31745.0,0.13738]
[1609789107577,0.29515608,31755.0,31732.0,4.3012]
[1609789108379,0.13632608,31734.0,31732.0,0.13632608]
[1609789108779,0.13632608,31734.0,31732.0,0.12752608]
[1609789108979,0.13632608,31734.0,31732.0,0.10352608]
[1609789109378,0.13632608,31734.0,31714.0,4.8839]
[1609789109578,0.10301,31737.0,31714.0,4.8839]
[1609789109779,0.10301,31737.0,31716.0,0.1299]
[1609789110179,0.13631,31744.0,31716.0,0.1299]
[1609789110479,0.13631,31744.0,31743.0,0.13632608]
[1609789110981,0.15883,31755.0,31743.0,0.13632608]
[1609789112379,0.15883,31755.0,31753.0,0.13632608]
[1609789112782,4.0729,31757.0,31738.0,0.11914]
[1609789114484,4.0729,31757.0,31752.0,0.13632608]
[1609789114684,0.453,31774.0,31752.0,0.13632608]
[1609789114883,4.3183,31768.0,31752.0,0.13632608]
[1609789115887,4.3183,31768.0,31738.0,0.11914]
[1609789116289,4.43303,31768.0,31738.0,0.11914]
[1609789116689,4.43303,31768.0,31748.0,0.13632608]
[1609789116890,4.43303,31768.0,31749.0,0.0942]
[1609789117489,4.43303,31768.0,31748.0,0.13632608]
[1609789118692,0.13632608,31749.0,31748.0,0.13632608]
[1609789118895,0.24088608,31749.0,31748.0,0.23192608]
[1609789119396,0.24088608,31749.0,31748.0,0.13632608]
[1609789121296,0.10456,31749.0,31748.0,0.13632608]
[1609789122098,0.10456,31749.0,31737.0,5.2415]
[1609789122798,0.13632608,31755.0,31748.0,0.13632608]
[1609789123901,0.13632608,31755.0,31749.0,0.0941]
[1609789124703,0.13632608,31755.0,31754.0,0.13632608]
[1609789127107,0.13632608,31755.0,31739.0,0.15335]
[1609789128207,0.13632608,31755.0,31728.0,5.0936]
[1609789128407,0.11518,31756.0,31728.0,5.0936]
[1609789128608,4.887,31758.0,31729.0,0.0932]
[1609789128909,0.13632608,31745.0,31744.0,0.13632608]
[1609789129110,0.13632608,31745.0,31744.0,0.23192608]
[1609789129310,0.13632608,31745.0,31744.0,0.13632608]
[1609789130013,0.13632608,31745.0,31728.0,5.20341]
[1609789131012,0.13632608,31734.0,31728.0,5.20341]
[1609789131213,0.13632608,31734.0,31728.0,0.10981]
[1609789132015,4.7987,31750.0,31729.0,0.0956]
[1609789132215,4.7987,31750.0,31728.0,0.63071]
[1609789133017,4.7987,31750.0,31744.0,0.13632608]
[1609789133217,0.10022,31754.0,31744.0,0.13632608]
[1609789134620,0.11473,31768.0,31744.0,0.13632608]
[1609789134920,0.13632608,31745.0,31744.0,0.13632608]
[1609789135421,0.29038608,31745.0,31744.0,0.13632608]
[1609789136120,0.29038608,31745.0,31744.0,0.23062608]
[1609789136925,0.29038608,31745.0,31744.0,0.13632608]
[1609789137120,0.29038608,31745.0,31728.0,0.10981]
[1609789137320,0.29038608,31745.0,31727.0,3.9111]
[1609789139026,0.15406,31745.0,31739.0,0.13632608]
[1609789140632,4.5763,31761.0,31739.0,0.13632608]
[1609789141027,4.5763,31761.0,31735.0,0.0952]
[1609789141234,4.5763,31761.0,31733.0,3.735]
[1609789141429,4.71002,31761.0,31733.0,3.735]
[1609789145132,4.71002,31761.0,31739.0,0.13632608]
[1609789147038,4.71002,31761.0,31746.0,0.13632608]
[1609789149040,0.13632608,31747.0,31746.0,0.13632608]
[1609789149440,0.25362608,31747.0,31746.0,0.13632608]
[1609789152043,0.25362608,31747.0,31746.0,0.22972608]
[1609789152643,0.25362608,31747.0,31746.0,0.13632608]
[1609789155047,0.25362608,31747.0,31746.0,0.23002608]
[1609789156750,0.25362608,31747.0,31746.0,0.13632608]
[1609789157759,0.25362608,31747.0,31746.0,0.22982608]
[1609789158255,0.25362608,31747.0,31746.0,0.13632608]
[1609789160555,0.25362608,31747.0,31746.0,0.23162608]
[1609789161258,0.25362608,31747.0,31746.0,0.13632608]
[1609789163463,0.25362608,31747.0,31746.0,0.22982608]
[1609789163662,0.25362608,31747.0,31746.0,0.0935]
[1609789164365,0.25362608,31747.0,31725.0,0.15941]
[1609789164566,4.11242608,31747.0,31726.0,5.2329]
[1609789165168,3.9761,31747.0,31728.0,0.13632608]
[1609789165769,0.0944,31746.0,31726.0,5.2329]
[1609789165967,0.1173,31747.0,31711.0,1.81042084]
[1609789166167,4.4997,31741.0,31714.0,5.1864]
[1609789166569,4.4997,31741.0,31715.0,0.0938]
[1609789167165,4.4997,31741.0,31727.0,0.13632608]
[1609789167368,0.13904,31728.0,31727.0,0.13632608]
[1609789169770,0.13987,31736.0,31727.0,0.13632608]
[1609789170169,0.13987,31736.0,31728.0,4.1007]
[1609789170571,0.13987,31736.0,31727.0,0.13632608]
[1609789170970,0.13987,31736.0,31730.0,3.7939]
[1609789171170,0.13987,31736.0,31735.0,0.13632608]
[1609789172571,0.1173,31747.0,31735.0,0.13632608]
[1609789172872,1.5367742,31760.0,31735.0,0.13632608]
[1609789173072,0.13632608,31744.0,31743.0,0.13632608]
[1609789173272,1.5367742,31760.0,31743.0,0.13632608]
[1609789173874,1.20580385,31761.0,31743.0,0.13632608]
[1609789175177,1.20580385,31761.0,31748.0,0.13632608]
[1609789175379,0.13372,31761.0,31748.0,0.13632608]
[1609789175578,4.2044,31763.0,31748.0,0.13632608]
[1609789175778,1.0721069,31767.0,31748.0,0.13632608]
[1609789176981,1.0721069,31767.0,31749.0,0.0936]
[1609789177982,1.0721069,31767.0,31753.0,4.0581]
[1609789178182,1.0721069,31767.0,31734.0,0.10809]
[1609789178383,1.07199282,31770.0,31734.0,0.10809]
[1609789178583,1.07199282,31770.0,31743.0,5.0956]
[1609789179183,1.07199282,31770.0,31760.0,0.13632608]
[1609789179886,1.07178137,31775.0,31760.0,0.13632608]
[1609789181288,0.13632608,31761.0,31760.0,0.13632608]
[1609789181489,0.24521608,31761.0,31760.0,0.13632608]
[1609789182492,0.24521608,31761.0,31753.0,0.0953]
[1609789183092,0.24521608,31761.0,31739.0,3.5319]
[1609789183293,0.13632608,31754.0,31750.0,0.13632608]
[1609789183493,0.23619608,31754.0,31750.0,0.13632608]
[1609789186896,0.09987,31754.0,31746.0,0.0956]
[1609789187396,0.13632608,31750.0,31748.0,0.13632608]
[1609789188998,0.13632608,31750.0,31749.0,0.0943]
[1609789191903,0.13632608,31750.0,31748.0,0.13632608]
[1609789192903,0.13632608,31750.0,31749.0,0.0944]
[1609789194007,0.13632608,31750.0,31735.0,4.1886]
[1609789194408,0.13632608,31750.0,31720.0,1.79973882]
[1609789194606,3.5564,31747.0,31721.0,4.489]
[1609789195208,3.70385,31747.0,31721.0,4.489]
[1609789195409,0.13632608,31740.0,31739.0,0.13632608]
[1609789196210,0.14745,31747.0,31739.0,0.13632608]
[1609789196811,0.14745,31747.0,31739.0,0.519]
[1609789197410,0.14745,31747.0,31746.0,0.13632608]
[1609789197610,0.14745,31747.0,31746.0,0.23172608]
[1609789198713,0.14745,31747.0,31746.0,0.13632608]
[1609789199615,0.14745,31747.0,31746.0,0.22992608]
[1609789200214,0.14745,31747.0,31746.0,0.13632608]
[1609789200414,0.13632608,31748.0,31746.0,0.13632608]
[1609789200617,0.13632608,31748.0,31747.0,0.0934]
[1609789202320,0.13632608,31748.0,31746.0,0.13632608]
[1609789203317,0.13632608,31748.0,31747.0,0.0929]
[1609789205523,0.13632608,31748.0,31742.0,0.0941]
[1609789205723,0.13632608,31748.0,31735.0,0.22972608]
[1609789205724,0.13632608,31748.0,31735.0,0.0934]
[1609789206324,0.13632608,31748.0,31732.0,0.11401]
[1609789206526,0.13632608,31748.0,31730.0,3.6316]
[1609789207126,0.13632608,31748.0,31731.0,0.0949]
[1609789207530,0.13632608,31732.0,31731.0,0.0949]
[1609789207729,0.74722608,31732.0,31721.0,1.80998323]
[1609789207929,0.6109,31732.0,31718.0,0.16074]
[1609789208431,0.6109,31732.0,31715.0,5.2132]
[1609789208629,0.15834,31735.0,31712.0,1.81646925]
[1609789208931,3.6103,31732.0,31712.0,1.81646925]
[1609789209331,3.6103,31732.0,31705.0,2.11033808]
[1609789209530,3.6103,31732.0,31713.0,0.13632608]
[1609789209931,3.6103,31732.0,31709.0,0.10952]
[1609789210835,3.6103,31732.0,31710.0,0.0954]
[1609789211636,0.13632608,31711.0,31709.0,0.10952]
[1609789212036,0.13632608,31711.0,31702.0,1.81791458]
[1609789212437,0.13632608,31711.0,31700.0,0.13632608]
[1609789213541,0.13632608,31711.0,31707.0,0.13632608]
[1609789214640,0.10718,31723.0,31707.0,0.13632608]
[1609789214840,0.10718,31723.0,31711.0,4.1641]
[1609789215243,0.15834,31735.0,31711.0,4.1641]
[1609789215440,1.06929431,31744.0,31712.0,0.0955]
[1609789215644,0.13632608,31738.0,31734.0,0.13632608]
[1609789216241,0.13632608,31738.0,31729.0,3.6402]